[Event "Titled Tuesday Blitz February 22 Late 2022"]
[White "Toncheva, Nadya"]
[Black "Migot, Tangi"]
[WhiteFideId "2924056"]
[BlackFideId "662445"]
[WhiteElo "1920"]
[BlackElo "2497"]
[Result "0-1"]
[Round "07"]
[TimeControl "180+1"]
[Date "2022.02.23"]
[WhiteClock "0:00:04"]
[BlackClock "0:00:52"]

1. e4 {[%clk 0:03:00]}  c6 {[%clk 0:03:00]} 2. d4 {[%clk 0:03:00]}  Na6 {[%clk 0:03:01]} 3. Nf3 {[%clk 0:02:57]}  Nc7 {[%clk 0:03:01]} 4. Bd3 {[%clk 0:02:57]}  d5 {[%clk 0:03:01]} 5. O-O {[%clk 0:02:56]}  Bg4 {[%clk 0:03:01]} 6. h3 {[%clk 0:02:55]}  Bxf3 {[%clk 0:03:00]} 7. Qxf3 {[%clk 0:02:55]}  dxe4 {[%clk 0:03:00]} 8. Qxe4 {[%clk 0:02:56]}  Nf6 {[%clk 0:02:59]} 9. Qe2 {[%clk 0:02:56]}  Qxd4 {[%clk 0:02:57]} 10. Rd1 {[%clk 0:02:55]}  Rd8 {[%clk 0:02:46]} 11. Nc3 {[%clk 0:02:51]}  Qh4 {[%clk 0:02:36]} 12. Be3 {[%clk 0:02:44]}  e6 {[%clk 0:02:29]} 13. Bxa7 {[%clk 0:02:43]}  Ncd5 {[%clk 0:02:28]} 14. Ne4 {[%clk 0:02:18]}  Nf4 {[%clk 0:02:26]} 15. Qf3 {[%clk 0:02:12]}  Nxd3 {[%clk 0:02:24]} 16. Nxf6+ {[%clk 0:02:01]}  Qxf6 {[%clk 0:02:23]} 17. Rxd3 {[%clk 0:02:01]}  Qxf3 {[%clk 0:02:17]} 18. Rxf3 {[%clk 0:01:57]}  Rd2 {[%clk 0:02:17]} 19. Rc3 {[%clk 0:01:51]}  Be7 {[%clk 0:02:11]} 20. Be3 {[%clk 0:01:50]}  Rd5 {[%clk 0:02:10]} 21. Rb3 {[%clk 0:01:44]}  Rd7 {[%clk 0:02:05]} 22. Kf1 {[%clk 0:01:40]}  Kd8 {[%clk 0:02:02]} 23. Bb6+ {[%clk 0:01:23]}  Kc8 {[%clk 0:02:01]} 24. Ke2 {[%clk 0:01:24]}  Bd8 {[%clk 0:01:57]} 25. Be3 {[%clk 0:01:18]}  Bf6 {[%clk 0:01:50]} 26. a4 {[%clk 0:01:06]}  Kc7 {[%clk 0:01:40]} 27. a5 {[%clk 0:01:02]}  Bd4 {[%clk 0:01:36]} 28. a6 {[%clk 0:00:58]}  b5 {[%clk 0:01:36]} 29. a7 {[%clk 0:00:49]}  Ra8 {[%clk 0:01:35]} 30. Bxd4 {[%clk 0:00:29]}  Rxd4 {[%clk 0:01:36]} 31. Rg3 {[%clk 0:00:29]}  g6 {[%clk 0:01:36]} 32. Rf3 {[%clk 0:00:28]}  Rd7 {[%clk 0:01:35]} 33. Rc3 {[%clk 0:00:26]}  Kb6 {[%clk 0:01:32]} 34. Ke3 {[%clk 0:00:19]}  Raxa7 {[%clk 0:01:29]} 35. Rxa7 {[%clk 0:00:18]}  Rxa7 {[%clk 0:01:29]} 36. Rd3 {[%clk 0:00:19]}  f6 {[%clk 0:01:27]} 37. Rd6 {[%clk 0:00:18]}  Re7 {[%clk 0:01:27]} 38. b3 {[%clk 0:00:17]}  Kc7 {[%clk 0:01:26]} 39. Rd2 {[%clk 0:00:17]}  Rd7 {[%clk 0:01:26]} 40. Re2 {[%clk 0:00:18]}  e5 {[%clk 0:01:26]} 41. f4 {[%clk 0:00:17]}  Re7 {[%clk 0:01:21]} 42. Kf3 {[%clk 0:00:17]}  Kd6 {[%clk 0:01:21]} 43. fxe5+ {[%clk 0:00:17]}  Rxe5 {[%clk 0:01:21]} 44. Rd2+ {[%clk 0:00:18]}  Ke6 {[%clk 0:01:21]} 45. Rd8 {[%clk 0:00:17]}  Rc5 {[%clk 0:01:20]} 46. Rd2 {[%clk 0:00:14]}  h5 {[%clk 0:01:20]} 47. h4 {[%clk 0:00:13]}  Kf5 {[%clk 0:01:18]} 48. g3 {[%clk 0:00:11]}  Rc3+ {[%clk 0:01:17]} 49. Kg2 {[%clk 0:00:11]}  g5 {[%clk 0:01:11]} 50. hxg5 {[%clk 0:00:10]}  fxg5 {[%clk 0:01:10]} 51. Re2 {[%clk 0:00:09]}  c5 {[%clk 0:01:09]} 52. Rd2 {[%clk 0:00:09]}  Kg4 {[%clk 0:01:08]} 53. b4 {[%clk 0:00:08]}  Rxg3+ {[%clk 0:01:04]} 54. Kh2 {[%clk 0:00:07]}  Rc3 {[%clk 0:01:04]} 55. bxc5 {[%clk 0:00:06]}  Rxc5 {[%clk 0:01:04]} 56. Rd4+ {[%clk 0:00:07]}  Kf5 {[%clk 0:01:04]} 57. Kg3 {[%clk 0:00:07]}  Rc3+ {[%clk 0:01:03]} 58. Kg2 {[%clk 0:00:03]}  Rxc2+ {[%clk 0:01:03]} 59. Kg3 {[%clk 0:00:03]}  Rc3+ {[%clk 0:01:02]} 60. Kg2 {[%clk 0:00:03]}  Rc5 {[%clk 0:01:02]} 61. Rd8 {[%clk 0:00:03]}  h4 {[%clk 0:01:01]} 62. Rd4 {[%clk 0:00:03]}  Re5 {[%clk 0:01:00]} 63. Rd8 {[%clk 0:00:03]}  b4 {[%clk 0:01:00]} 64. Rf8+ {[%clk 0:00:03]}  Kg4 {[%clk 0:00:59]} 65. Rb8 {[%clk 0:00:04]}  Re2+ {[%clk 0:00:59]} 66. Kf1 {[%clk 0:00:04]}  Re4 {[%clk 0:00:59]} 67. Rb5 {[%clk 0:00:04]}  h3 {[%clk 0:00:59]} 68. Kg1 {[%clk 0:00:04]}  Kh4 {[%clk 0:00:55]} 69. Kh1 {[%clk 0:00:04]}  g4 {[%clk 0:00:56]} 70. Kg1 {[%clk 0:00:04]}  Kg3 {[%clk 0:00:56]} 71. Kf1 {[%clk 0:00:04]}  h2 {[%clk 0:00:55]} 72. Rh5 {[%clk 0:00:04]}  Rf4+ {[%clk 0:00:52]} 73. Ke2 {[%clk 0:00:04]}  b3 {[%clk 0:00:52]} 74. Ke3 {[%clk 0:00:04]}  Rf3+ {[%clk 0:00:52]} 75. Ke4 {[%clk 0:00:05]}  Kg2 {[%clk 0:00:52]} 76. Rh4 {[%clk 0:00:04]}  g3 {[%clk 0:00:52]} 0-1


[Site "https://www.chess.com"]

[Event "Titled Tuesday Blitz February 22 Late 2022"]
[White "Vine, Elzbieta"]
[Black "Thomas, Anysia"]
[WhiteFideId "1119320"]
[BlackFideId "670472"]
[WhiteElo "1879"]
[BlackElo "2002"]
[Result "0-1"]
[Round "07"]
[TimeControl "180+1"]
[Date "2022.02.23"]
[WhiteClock "0:00:07"]
[BlackClock "0:00:06"]

1. e4 {[%clk 0:03:00]}  c5 {[%clk 0:02:59]} 2. Nf3 {[%clk 0:02:58]}  Nc6 {[%clk 0:02:59]} 3. d4 {[%clk 0:02:57]}  cxd4 {[%clk 0:02:59]} 4. Nxd4 {[%clk 0:02:57]}  g6 {[%clk 0:02:59]} 5. Nc3 {[%clk 0:02:53]}  Bg7 {[%clk 0:02:59]} 6. Be3 {[%clk 0:02:53]}  Nf6 {[%clk 0:02:59]} 7. Qd2 {[%clk 0:02:44]}  O-O {[%clk 0:02:59]} 8. O-O-O {[%clk 0:02:43]}  d5 {[%clk 0:02:59]} 9. f3 {[%clk 0:02:09]}  dxe4 {[%clk 0:01:40]} 10. Nxe4 {[%clk 0:02:08]}  Nxe4 {[%clk 0:01:39]} 11. fxe4 {[%clk 0:02:07]}  Bg4 {[%clk 0:01:37]} 12. Nf3 {[%clk 0:02:05]}  Qc7 {[%clk 0:01:34]} 13. Bd3 {[%clk 0:01:57]}  Ne5 {[%clk 0:01:32]} 14. h3 {[%clk 0:01:23]}  Bxf3 {[%clk 0:01:21]} 15. gxf3 {[%clk 0:01:22]}  Rfd8 {[%clk 0:01:18]} 16. Qe2 {[%clk 0:01:14]}  Rac8 {[%clk 0:01:09]} 17. f4 {[%clk 0:01:04]}  Nc6 {[%clk 0:01:05]} 18. h4 {[%clk 0:00:53]}  Nb4 {[%clk 0:01:05]} 19. Kb1 {[%clk 0:00:48]}  Qa5 {[%clk 0:00:56]} 20. a3 {[%clk 0:00:45]}  Nc6 {[%clk 0:00:55]} 21. h5 {[%clk 0:00:40]}  Nd4 {[%clk 0:00:54]} 22. Bxd4 {[%clk 0:00:32]}  Bxd4 {[%clk 0:00:55]} 23. hxg6 {[%clk 0:00:31]}  fxg6 {[%clk 0:00:49]} 24. Qh2 {[%clk 0:00:26]}  Qb6 {[%clk 0:00:34]} 25. Qxh7+ {[%clk 0:00:24]}  Kf8 {[%clk 0:00:34]} 26. b4 {[%clk 0:00:15]}  Rc3 {[%clk 0:00:21]} 27. e5 {[%clk 0:00:14]}  Ke8 {[%clk 0:00:13]} 28. Bxg6+ {[%clk 0:00:10]}  Kd7 {[%clk 0:00:10]} 29. Bf5+ {[%clk 0:00:09]}  Kc7 {[%clk 0:00:08]} 30. Qxe7+ {[%clk 0:00:07]}  Kb8 {[%clk 0:00:06]} 0-1


[Site "https://www.chess.com"]

[Event "Titled Tuesday Blitz February 22 Late 2022"]
[White "Virtanen, Teemu"]
[Black "Hjartarson, Johann"]
[WhiteFideId "509850"]
[BlackFideId "2300044"]
[WhiteElo "2477"]
[BlackElo "2636"]
[Result "0-1"]
[Round "07"]
[TimeControl "180+1"]
[Date "2022.02.23"]
[WhiteClock "0:00:02"]
[BlackClock "0:00:12"]

1. c4 {[%clk 0:03:00]}  c5 {[%clk 0:02:58]} 2. g3 {[%clk 0:03:00]}  g6 {[%clk 0:02:57]} 3. Bg2 {[%clk 0:03:01]}  Bg7 {[%clk 0:02:57]} 4. Nc3 {[%clk 0:03:02]}  Nc6 {[%clk 0:02:57]} 5. e3 {[%clk 0:03:01]}  Nf6 {[%clk 0:02:54]} 6. Nge2 {[%clk 0:03:01]}  O-O {[%clk 0:02:53]} 7. O-O {[%clk 0:03:01]}  d6 {[%clk 0:02:50]} 8. h3 {[%clk 0:02:59]}  Bd7 {[%clk 0:02:48]} 9. d4 {[%clk 0:02:58]}  a6 {[%clk 0:02:44]} 10. b3 {[%clk 0:02:37]}  Rb8 {[%clk 0:02:42]} 11. a4 {[%clk 0:02:35]}  Qc8 {[%clk 0:02:21]} 12. Kh2 {[%clk 0:02:34]}  Rd8 {[%clk 0:02:16]} 13. Bb2 {[%clk 0:02:25]}  Na5 {[%clk 0:02:15]} 14. Qc2 {[%clk 0:02:17]}  cxd4 {[%clk 0:02:07]} 15. Nxd4 {[%clk 0:02:14]}  e5 {[%clk 0:01:58]} 16. Nde2 {[%clk 0:02:06]}  Bf5 {[%clk 0:01:52]} 17. e4 {[%clk 0:02:06]}  Be6 {[%clk 0:01:51]} 18. Rfd1 {[%clk 0:02:04]}  Nc6 {[%clk 0:01:50]} 19. Ba3 {[%clk 0:01:54]}  Bf8 {[%clk 0:01:32]} 20. Rac1 {[%clk 0:01:43]}  h5 {[%clk 0:01:30]} 21. Qd2 {[%clk 0:01:19]}  Kh7 {[%clk 0:01:19]} 22. Nd5 {[%clk 0:01:11]}  Ng8 {[%clk 0:01:16]} 23. f4 {[%clk 0:00:57]}  f5 {[%clk 0:01:13]} 24. Rf1 {[%clk 0:00:52]}  Qd7 {[%clk 0:01:07]} 25. Nec3 {[%clk 0:00:44]}  Nd4 {[%clk 0:01:05]} 26. Qd1 {[%clk 0:00:29]}  Bg7 {[%clk 0:00:59]} 27. Ne2 {[%clk 0:00:25]}  fxe4 {[%clk 0:00:52]} 28. Nxd4 {[%clk 0:00:22]}  exd4 {[%clk 0:00:52]} 29. Bxe4 {[%clk 0:00:23]}  Bf5 {[%clk 0:00:47]} 30. Bg2 {[%clk 0:00:14]}  Re8 {[%clk 0:00:45]} 31. Bb2 {[%clk 0:00:14]}  b5 {[%clk 0:00:40]} 32. axb5 {[%clk 0:00:13]}  axb5 {[%clk 0:00:39]} 33. Bxd4 {[%clk 0:00:14]}  bxc4 {[%clk 0:00:35]} 34. bxc4 {[%clk 0:00:14]}  Be4 {[%clk 0:00:27]} 35. Re1 {[%clk 0:00:12]}  Bxg2 {[%clk 0:00:21]} 36. Rxe8 {[%clk 0:00:04]}  Qxh3+ {[%clk 0:00:19]} 37. Kg1 {[%clk 0:00:04]}  Bxd5 {[%clk 0:00:14]} 38. cxd5 {[%clk 0:00:02]}  Qxg3+ {[%clk 0:00:14]} 39. Kh1 {[%clk 0:00:02]}  Qh4+ {[%clk 0:00:13]} 40. Kg1 {[%clk 0:00:02]}  Rxe8 {[%clk 0:00:12]} 41. Bf6 {[%clk 0:00:02]} 0-1


[Site "https://www.chess.com"]

[Event "Titled Tuesday Blitz February 22 Late 2022"]
[White "Vovk, Orest"]
[Black "Sliwicki, Damian"]
[WhiteFideId "14113490"]
[BlackFideId "1127128"]
[WhiteElo "2645"]
[BlackElo "2449"]
[Result "1-0"]
[Round "07"]
[TimeControl "180+1"]
[Date "2022.02.23"]
[WhiteClock "0:00:05"]
[BlackClock "0:00:02"]

1. h4 {[%clk 0:03:00]}  d5 {[%clk 0:02:56]} 2. h5 {[%clk 0:02:59]}  e5 {[%clk 0:02:56]} 3. h6 {[%clk 0:02:59]}  Nxh6 {[%clk 0:02:56]} 4. d4 {[%clk 0:02:58]}  exd4 {[%clk 0:02:48]} 5. Bxh6 {[%clk 0:02:58]}  gxh6 {[%clk 0:02:49]} 6. Qxd4 {[%clk 0:02:58]}  Rg8 {[%clk 0:02:48]} 7. Nc3 {[%clk 0:02:59]}  Be6 {[%clk 0:02:45]} 8. O-O-O {[%clk 0:02:57]}  Nc6 {[%clk 0:02:42]} 9. Qh4 {[%clk 0:02:57]}  Be7 {[%clk 0:02:38]} 10. Qh2 {[%clk 0:02:40]}  Qd7 {[%clk 0:02:24]} 11. Nf3 {[%clk 0:02:39]}  O-O-O {[%clk 0:02:22]} 12. e3 {[%clk 0:02:39]}  Rg6 {[%clk 0:02:09]} 13. Bb5 {[%clk 0:02:38]}  Bd6 {[%clk 0:02:03]} 14. Qh4 {[%clk 0:02:16]}  a6 {[%clk 0:02:00]} 15. Ba4 {[%clk 0:02:12]}  Rxg2 {[%clk 0:01:49]} 16. Nd4 {[%clk 0:02:04]}  Rg4 {[%clk 0:01:17]} 17. Bxc6 {[%clk 0:01:20]}  bxc6 {[%clk 0:01:04]} 18. Qxh6 {[%clk 0:01:19]}  Rdg8 {[%clk 0:00:44]} 19. Qxh7 {[%clk 0:01:15]}  c5 {[%clk 0:00:41]} 20. Nxe6 {[%clk 0:01:13]}  fxe6 {[%clk 0:00:42]} 21. Qxd7+ {[%clk 0:01:03]}  Kxd7 {[%clk 0:00:43]} 22. Rh7+ {[%clk 0:01:03]}  Kc6 {[%clk 0:00:42]} 23. Rh6 {[%clk 0:01:02]}  R8g6 {[%clk 0:00:41]} 24. Rxg6 {[%clk 0:01:01]}  Rxg6 {[%clk 0:00:42]} 25. Kd2 {[%clk 0:01:00]}  d4 {[%clk 0:00:34]} 26. Ne4 {[%clk 0:00:53]}  Kd5 {[%clk 0:00:35]} 27. Nxd6 {[%clk 0:00:52]}  cxd6 {[%clk 0:00:35]} 28. Ke2 {[%clk 0:00:50]}  e5 {[%clk 0:00:29]} 29. c3 {[%clk 0:00:48]}  Rg4 {[%clk 0:00:23]} 30. Kf3 {[%clk 0:00:40]}  Rh4 {[%clk 0:00:23]} 31. Kg3 {[%clk 0:00:37]}  Rh8 {[%clk 0:00:18]} 32. cxd4 {[%clk 0:00:34]}  cxd4 {[%clk 0:00:19]} 33. exd4 {[%clk 0:00:34]}  e4 {[%clk 0:00:19]} 34. Rd2 {[%clk 0:00:26]}  Rg8+ {[%clk 0:00:18]} 35. Kf4 {[%clk 0:00:25]}  Rf8+ {[%clk 0:00:12]} 36. Ke3 {[%clk 0:00:25]}  a5 {[%clk 0:00:10]} 37. Ke2 {[%clk 0:00:25]}  a4 {[%clk 0:00:10]} 38. Kd1 {[%clk 0:00:17]}  Kc4 {[%clk 0:00:10]} 39. d5 {[%clk 0:00:16]}  Rf5 {[%clk 0:00:09]} 40. Ke2 {[%clk 0:00:09]}  Re5 {[%clk 0:00:05]} 41. Ke3 {[%clk 0:00:08]}  Kb4 {[%clk 0:00:03]} 42. Rd4+ {[%clk 0:00:07]}  Kc5 {[%clk 0:00:03]} 43. Rxe4 {[%clk 0:00:07]}  Rxd5 {[%clk 0:00:03]} 44. Rxa4 {[%clk 0:00:07]}  Rd1 {[%clk 0:00:03]} 45. b3 {[%clk 0:00:06]}  Kb5 {[%clk 0:00:03]} 46. Ke2 {[%clk 0:00:06]}  Rb1 {[%clk 0:00:02]} 47. Ra8 {[%clk 0:00:07]}  Kb4 {[%clk 0:00:02]} 48. f4 {[%clk 0:00:06]}  d5 {[%clk 0:00:03]} 49. Ke3 {[%clk 0:00:05]}  Kc3 {[%clk 0:00:02]} 50. Rc8+ {[%clk 0:00:05]}  Kb2 {[%clk 0:00:02]} 51. Kd4 {[%clk 0:00:05]}  Rd1+ {[%clk 0:00:02]} 52. Ke5 {[%clk 0:00:05]}  Kxa2 {[%clk 0:00:02]} 53. Rd8 {[%clk 0:00:05]} 1-0


[Site "https://www.chess.com"]

[Event "Titled Tuesday Blitz February 22 Late 2022"]
[White "Wan, Joseph"]
[Black "Romanchuk, Viktor"]
[WhiteFideId "2069890"]
[BlackFideId "14109271"]
[WhiteElo "2731"]
[BlackElo "2545"]
[Result "1-0"]
[Round "07"]
[TimeControl "180+1"]
[Date "2022.02.23"]
[WhiteClock "0:00:13"]
[BlackClock "0:00:00"]

1. d4 {[%clk 0:03:00]}  d5 {[%clk 0:02:58]} 2. Bf4 {[%clk 0:03:00]}  Nf6 {[%clk 0:02:58]} 3. e3 {[%clk 0:03:00]}  c5 {[%clk 0:02:58]} 4. Nf3 {[%clk 0:02:55]}  Nc6 {[%clk 0:02:58]} 5. Nbd2 {[%clk 0:02:56]}  Qb6 {[%clk 0:02:57]} 6. dxc5 {[%clk 0:02:55]}  Qxb2 {[%clk 0:02:57]} 7. c4 {[%clk 0:02:56]}  e6 {[%clk 0:02:51]} 8. Rc1 {[%clk 0:02:52]}  Be7 {[%clk 0:02:21]} 9. Be2 {[%clk 0:02:49]}  O-O {[%clk 0:02:20]} 10. cxd5 {[%clk 0:02:46]}  Nxd5 {[%clk 0:02:19]} 11. Bg3 {[%clk 0:02:30]}  Nc3 {[%clk 0:01:50]} 12. Qc2 {[%clk 0:02:30]}  Qxc2 {[%clk 0:01:49]} 13. Rxc2 {[%clk 0:02:31]}  Nxe2 {[%clk 0:01:49]} 14. Kxe2 {[%clk 0:02:32]}  Nb4 {[%clk 0:01:49]} 15. Rc4 {[%clk 0:02:27]}  a5 {[%clk 0:01:48]} 16. a3 {[%clk 0:02:25]}  Na6 {[%clk 0:01:48]} 17. Rhc1 {[%clk 0:02:12]}  Bd7 {[%clk 0:01:44]} 18. R4c3 {[%clk 0:02:07]}  Rfc8 {[%clk 0:01:33]} 19. Ne4 {[%clk 0:02:07]}  Bc6 {[%clk 0:01:05]} 20. Nd6 {[%clk 0:02:07]}  Rd8 {[%clk 0:01:05]} 21. Nd4 {[%clk 0:02:06]}  Bd5 {[%clk 0:00:58]} 22. N4b5 {[%clk 0:01:49]}  h6 {[%clk 0:00:51]} 23. f3 {[%clk 0:01:49]}  f6 {[%clk 0:00:44]} 24. e4 {[%clk 0:01:49]}  Bc6 {[%clk 0:00:44]} 25. Nd4 {[%clk 0:01:49]}  e5 {[%clk 0:00:43]} 26. N4f5 {[%clk 0:01:31]}  Bf8 {[%clk 0:00:41]} 27. Bf2 {[%clk 0:01:31]}  g6 {[%clk 0:00:38]} 28. Nh4 {[%clk 0:01:32]}  Kh7 {[%clk 0:00:27]} 29. Be3 {[%clk 0:01:32]}  Nxc5 {[%clk 0:00:25]} 30. Bxc5 {[%clk 0:01:18]}  Bxd6 {[%clk 0:00:23]} 31. g3 {[%clk 0:01:19]}  Bxc5 {[%clk 0:00:21]} 32. Rxc5 {[%clk 0:01:20]}  Rd4 {[%clk 0:00:21]} 33. Ng2 {[%clk 0:01:17]}  Rad8 {[%clk 0:00:20]} 34. R1c2 {[%clk 0:01:18]}  Rd3 {[%clk 0:00:20]} 35. Rxa5 {[%clk 0:01:04]}  Rb3 {[%clk 0:00:20]} 36. Ra7 {[%clk 0:01:00]}  Kh8 {[%clk 0:00:18]} 37. Nh4 {[%clk 0:00:52]}  Bb5+ {[%clk 0:00:14]} 38. Kf2 {[%clk 0:00:53]}  Be8 {[%clk 0:00:13]} 39. Kg2 {[%clk 0:00:50]}  Kg8 {[%clk 0:00:13]} 40. Kh3 {[%clk 0:00:47]}  h5 {[%clk 0:00:13]} 41. a4 {[%clk 0:00:26]}  Rb8 {[%clk 0:00:09]} 42. Rc7 {[%clk 0:00:25]}  Rb4 {[%clk 0:00:09]} 43. a5 {[%clk 0:00:25]}  Ra4 {[%clk 0:00:05]} 44. g4 {[%clk 0:00:20]}  hxg4+ {[%clk 0:00:04]} 45. Kxg4 {[%clk 0:00:21]}  Kf8 {[%clk 0:00:04]} 46. Rh7 {[%clk 0:00:14]}  Kg8 {[%clk 0:00:04]} 47. Rc7 {[%clk 0:00:14]}  Kf8 {[%clk 0:00:04]} 48. Ng2 {[%clk 0:00:15]}  Kg8 {[%clk 0:00:04]} 49. Ne3 {[%clk 0:00:16]}  Rd4 {[%clk 0:00:02]} 50. Nd5 {[%clk 0:00:16]}  f5+ {[%clk 0:00:02]} 51. Kg5 {[%clk 0:00:15]}  fxe4 {[%clk 0:00:02]} 52. Nf6+ {[%clk 0:00:14]}  Kf8 {[%clk 0:00:02]} 53. Nh7+ {[%clk 0:00:12]}  Kg8 {[%clk 0:00:02]} 54. Nf6+ {[%clk 0:00:13]}  Kf8 {[%clk 0:00:02]} 55. fxe4 {[%clk 0:00:14]}  Rd6 {[%clk 0:00:00]} 56. Nh7+ {[%clk 0:00:13]} 1-0


[Site "https://www.chess.com"]

[Event "Titled Tuesday Blitz February 22 Late 2022"]
[White "Weetik, Vjacheslav"]
[Black "Devaev, Alexander"]
[WhiteFideId "4153472"]
[BlackFideId "4169395"]
[WhiteElo "2469"]
[BlackElo "2185"]
[Result "0-1"]
[Round "07"]
[TimeControl "180+1"]
[Date "2022.02.23"]
[WhiteClock "0:00:15"]
[BlackClock "0:00:28"]

1. e4 {[%clk 0:02:59]}  c6 {[%clk 0:01:47]} 2. d4 {[%clk 0:02:58]}  d5 {[%clk 0:01:47]} 3. e5 {[%clk 0:02:59]}  Bf5 {[%clk 0:01:46]} 4. h4 {[%clk 0:03:00]}  Qb6 {[%clk 0:01:46]} 5. Nc3 {[%clk 0:02:59]}  h6 {[%clk 0:01:45]} 6. g4 {[%clk 0:02:54]}  Bd7 {[%clk 0:01:45]} 7. h5 {[%clk 0:02:50]}  e6 {[%clk 0:01:46]} 8. f4 {[%clk 0:02:44]}  c5 {[%clk 0:01:46]} 9. Nf3 {[%clk 0:02:44]}  Nc6 {[%clk 0:01:46]} 10. Be3 {[%clk 0:02:32]}  cxd4 {[%clk 0:01:41]} 11. Nxd4 {[%clk 0:02:31]}  Nxd4 {[%clk 0:01:42]} 12. Qxd4 {[%clk 0:02:23]}  Qa5 {[%clk 0:01:34]} 13. a3 {[%clk 0:01:58]}  Ne7 {[%clk 0:00:59]} 14. b4 {[%clk 0:01:55]}  Qd8 {[%clk 0:00:59]} 15. Nb5 {[%clk 0:01:35]}  Bxb5 {[%clk 0:00:51]} 16. Bxb5+ {[%clk 0:01:34]}  Nc6 {[%clk 0:00:52]} 17. f5 {[%clk 0:01:16]}  Be7 {[%clk 0:00:45]} 18. O-O {[%clk 0:01:09]}  Bg5 {[%clk 0:00:40]} 19. f6 {[%clk 0:01:08]}  gxf6 {[%clk 0:00:38]} 20. exf6 {[%clk 0:00:56]}  Rg8 {[%clk 0:00:37]} 21. Bxg5 {[%clk 0:00:36]}  Rxg5 {[%clk 0:00:36]} 22. Rf4 {[%clk 0:00:37]}  Qd6 {[%clk 0:00:35]} 23. Raf1 {[%clk 0:00:21]}  a6 {[%clk 0:00:31]} 24. Bxc6+ {[%clk 0:00:21]}  Qxc6 {[%clk 0:00:31]} 25. c4 {[%clk 0:00:21]}  O-O-O {[%clk 0:00:29]} 26. c5 {[%clk 0:00:15]}  e5 {[%clk 0:00:28]} 0-1


[Site "https://www.chess.com"]

[Event "Titled Tuesday Blitz February 22 Late 2022"]
[White "Wu, Christopher"]
[Black "Gimenez Aguirre, Alejo Ismael"]
[WhiteFideId "2040875"]
[BlackFideId "32041667"]
[WhiteElo "2641"]
[BlackElo "2493"]
[Result "1/2-1/2"]
[Round "07"]
[TimeControl "180+1"]
[Date "2022.02.23"]
[WhiteClock "0:00:03"]
[BlackClock "0:00:45"]

1. d4 {[%clk 0:03:00]}  Nf6 {[%clk 0:02:58]} 2. c4 {[%clk 0:03:00]}  e6 {[%clk 0:02:59]} 3. Nf3 {[%clk 0:02:59]}  Bb4+ {[%clk 0:02:56]} 4. Nbd2 {[%clk 0:02:57]}  O-O {[%clk 0:02:55]} 5. g3 {[%clk 0:02:57]}  b6 {[%clk 0:02:55]} 6. Bg2 {[%clk 0:02:56]}  Bb7 {[%clk 0:02:55]} 7. O-O {[%clk 0:02:54]}  d5 {[%clk 0:02:56]} 8. Ne5 {[%clk 0:02:50]}  Nbd7 {[%clk 0:02:55]} 9. Qc2 {[%clk 0:02:49]}  Nxe5 {[%clk 0:02:50]} 10. dxe5 {[%clk 0:02:47]}  Nd7 {[%clk 0:02:50]} 11. f4 {[%clk 0:02:25]}  f6 {[%clk 0:02:29]} 12. exf6 {[%clk 0:02:22]}  Nxf6 {[%clk 0:02:27]} 13. h3 {[%clk 0:02:08]}  Nh5 {[%clk 0:02:11]} 14. Kh2 {[%clk 0:02:04]}  Bd6 {[%clk 0:02:10]} 15. Nf3 {[%clk 0:01:53]}  dxc4 {[%clk 0:02:02]} 16. Qxc4 {[%clk 0:01:54]}  Bd5 {[%clk 0:02:01]} 17. Qc2 {[%clk 0:01:53]}  Nf6 {[%clk 0:01:52]} 18. b3 {[%clk 0:01:35]}  Qe8 {[%clk 0:01:50]} 19. Bb2 {[%clk 0:01:27]}  Qh5 {[%clk 0:01:50]} 20. Bxf6 {[%clk 0:01:23]}  gxf6 {[%clk 0:01:51]} 21. e4 {[%clk 0:01:22]}  Bb7 {[%clk 0:01:48]} 22. Rae1 {[%clk 0:01:14]}  Kh8 {[%clk 0:01:46]} 23. e5 {[%clk 0:00:57]}  fxe5 {[%clk 0:01:43]} 24. Nxe5 {[%clk 0:00:54]}  Bxg2 {[%clk 0:01:44]} 25. Qxg2 {[%clk 0:00:53]}  Rad8 {[%clk 0:01:38]} 26. Nc4 {[%clk 0:00:41]}  Qd5 {[%clk 0:01:28]} 27. Rd1 {[%clk 0:00:31]}  Qf5 {[%clk 0:01:20]} 28. Rfe1 {[%clk 0:00:27]}  Bb4 {[%clk 0:01:18]} 29. Rxd8 {[%clk 0:00:22]}  Rxd8 {[%clk 0:01:18]} 30. Re5 {[%clk 0:00:21]}  Qb1 {[%clk 0:01:16]} 31. Rxe6 {[%clk 0:00:21]}  b5 {[%clk 0:01:16]} 32. Qe2 {[%clk 0:00:12]}  Bc3 {[%clk 0:00:43]} 33. Re8+ {[%clk 0:00:10]}  Rxe8 {[%clk 0:00:44]} 34. Qxe8+ {[%clk 0:00:11]}  Kg7 {[%clk 0:00:45]} 35. Qe7+ {[%clk 0:00:11]}  Kg8 {[%clk 0:00:45]} 36. Qe8+ {[%clk 0:00:10]}  Kg7 {[%clk 0:00:45]} 37. Qe7+ {[%clk 0:00:05]}  Kg8 {[%clk 0:00:45]} 38. Qe8+ {[%clk 0:00:03]}  Kg7 {[%clk 0:00:45]} 1/2-1/2


[Site "https://www.chess.com"]